bitfinex/quotes_BTCUSD_20240703
["timestamp","ask_amount","ask_price","bid_price","bid_amount"]
[1719979489581,1.30192298,60952.0,60951.0,0.002]
[1719979490560,1.35463165,60952.0,60951.0,0.002]
[1719979490750,1.34092791,60952.0,60951.0,0.002]
[1719979490942,1.3545695,60952.0,60951.0,0.002]
[1719979491196,1.25333392,60952.0,60951.0,0.002]
[1719979491555,2.41249098,60952.0,60951.0,0.002]
[1719979492106,2.11249098,60952.0,60951.0,0.002]
[1719979492355,2.12649098,60952.0,60951.0,0.003]
[1719979492566,1.83526941,60952.0,60951.0,0.003]
[1719979492744,1.80726941,60952.0,60951.0,0.002]
[1719979493054,1.66856941,60952.0,60951.0,0.002]
[1719979493333,1.68256941,60952.0,60951.0,0.002]
[1719979493916,1.68244036,60952.0,60951.0,0.002]
[1719979495513,1.70544036,60952.0,60951.0,0.002]
[1719979495716,1.70544036,60952.0,60951.0,0.002924]
[1719979496577,1.67744036,60952.0,60951.0,0.002924]
[1719979496731,1.69181066,60952.0,60951.0,0.003924]
[1719979496929,1.99181066,60952.0,60951.0,0.003924]
[1719979497111,1.84884134,60952.0,60951.0,0.003924]
[1719979497337,1.83484164,60952.0,60951.0,0.003924]
[1719979497538,2.14884164,60952.0,60951.0,0.003924]
[1719979497740,1.84884164,60952.0,60951.0,0.003924]
[1719979498669,1.83484164,60952.0,60951.0,0.002924]
[1719979498860,1.84884164,60952.0,60951.0,0.003924]
[1719979500273,1.84791889,60952.0,60951.0,0.003924]
[1719979500716,2.0001202,60952.0,60951.0,0.003924]
[1719979502268,1.83975714,60952.0,60951.0,0.003924]
[1719979502497,1.83960406,60952.0,60951.0,0.003924]
[1719979503664,1.83785419,60952.0,60951.0,0.003924]
[1719979504214,2.13785419,60952.0,60951.0,0.003924]
[1719979504409,1.83785419,60952.0,60951.0,0.003924]
[1719979504619,1.8689403,60952.0,60951.0,0.003924]
[1719979505028,2.1689403,60952.0,60951.0,0.003924]
[1719979505536,2.12081804,60952.0,60951.0,0.003924]
[1719979505767,2.16916277,60952.0,60951.0,0.003924]
[1719979506106,2.16916277,60952.0,60949.0,0.009207]
[1719979506107,1.038306,60950.0,60949.0,0.009207]
[1719979506321,1.2986048,60950.0,60949.0,0.009207]
[1719979506482,1.34683384,60950.0,60949.0,0.009207]
[1719979506857,1.34683384,60950.0,60939.0,0.009207]
[1719979506858,0.3,60947.0,60939.0,0.009207]
[1719979507065,0.339442,60940.0,60939.0,0.009207]
[1719979507278,1.0920258,60940.0,60939.0,0.009207]
[1719979507876,0.9279308,60940.0,60939.0,0.357407]
[1719979508538,0.767632,60940.0,60939.0,0.41561585]
[1719979508765,0.182047,60940.0,60939.0,0.41561585]
[1719979508922,0.182045,60942.0,60941.0,0.40470885]
[1719979509120,0.275345,60942.0,60941.0,0.40470885]
[1719979509316,0.1,60942.0,60941.0,0.40470885]
[1719979509517,0.1,60942.0,60939.0,0.009207]
[1719979509518,0.4702,60947.0,60946.0,0.41740885]
[1719979509719,0.4702,60947.0,60946.0,0.43368171]
[1719979509720,0.5635,60947.0,60946.0,0.43368171]
[1719979511219,0.0933,60947.0,60946.0,0.43368171]
[1719979511427,0.00084,60955.0,60954.0,0.05820885]
[1719979511775,0.00084,60955.0,60954.0,0.45606247]
[1719979512004,0.00084,60955.0,60954.0,0.69839027]
[1719979512156,0.00084,60955.0,60954.0,0.86244827]
[1719979512539,0.09414,60955.0,60954.0,0.85916751]
[1719979513297,0.09414,60955.0,60954.0,0.86016751]
[1719979513298,0.09514,60955.0,60954.0,0.86016751]
[1719979513506,0.09414,60955.0,60954.0,0.85916751]
[1719979513752,0.09514,60955.0,60954.0,0.85916751]
[1719979513923,0.09614,60955.0,60954.0,0.86016751]
[1719979514570,0.09614,60955.0,60954.0,0.58408051]
[1719979514916,0.082011,60967.0,60966.0,0.41450885]
[1719979515124,0.164854,60971.0,60968.0,0.05820885]
[1719979515319,0.24686,60971.0,60970.0,0.05820885]
[1719979515499,0.082007,60970.0,60969.0,0.41450885]
[1719979516528,0.182007,60970.0,60969.0,0.41450885]
[1719979516945,0.1,60970.0,60969.0,0.41450885]
[1719979517304,0.00084,60971.0,60970.0,0.05820885]
[1719979517441,0.164015,60970.0,60969.0,0.3573]
[1719979517660,0.59019282,60970.0,60969.0,0.3573]
[1719979517859,0.82329282,60970.0,60969.0,0.3573]
[1719979518588,0.82329282,60970.0,60969.0,0.3563]
[1719979518958,0.82929282,60970.0,60969.0,0.3573]
[1719979519675,0.83529282,60970.0,60969.0,0.3573]
[1719979520025,1.2537047,60970.0,60969.0,0.001]
[1719979520237,1.6083047,60970.0,60966.0,0.01627286]
[1719979520373,0.57408,60967.0,60966.0,0.01627286]
[1719979521272,0.9984018,60967.0,60966.0,0.01627286]
[1719979521666,0.8343788,60967.0,60966.0,0.01627286]
[1719979522814,0.8343788,60967.0,60966.0,0.01727286]
[1719979522815,0.8543788,60967.0,60966.0,0.01727286]
[1719979523016,0.8453788,60967.0,60966.0,0.01627286]
[1719979523461,0.8543788,60967.0,60966.0,0.01727286]
[1719979524035,0.8433788,60967.0,60966.0,0.01727286]
[1719979524238,0.8343788,60967.0,60966.0,0.01627286]
[1719979525438,0.8443788,60967.0,60966.0,0.01627286]
[1719979525629,0.410102,60960.0,60959.0,0.2]
[1719979525846,0.410102,60960.0,60959.0,0.21627286]
[1719979526243,0.410102,60960.0,60959.0,0.27448171]
[1719979527089,0.412102,60960.0,60959.0,0.27448171]
[1719979527267,0.413102,60960.0,60959.0,0.21627286]
[1719979527469,0.413102,60960.0,60959.0,0.27448171]
[1719979528993,0.412102,60960.0,60959.0,0.27448171]
[1719979529120,0.410102,60960.0,60959.0,0.27448171]
[1719979529768,0.410102,60960.0,60959.0,0.21627286]
[1719979529769,0.411102,60960.0,60959.0,0.21627286]
[1719979530853,0.411102,60960.0,60959.0,0.25820885]
[1719979532125,0.411102,60960.0,60959.0,0.2]
[1719979532527,0.164044,60959.0,60956.0,0.21370885]
[1719979532739,0.164044,60959.0,60958.0,0.05820885]
[1719979532740,0.246066,60959.0,60958.0,0.05820885]
[1719979533645,0.410111,60959.0,60958.0,0.05820885]
[1719979534267,0.397132,60964.0,60956.0,0.17177286]
[1719979534268,0.10084,60967.0,60964.0,0.3679]
[1719979534471,0.246042,60965.0,60964.0,0.38417286]
[1719979535756,0.41007,60965.0,60964.0,0.38517286]
[1719979535949,0.41007,60965.0,60964.0,0.38417286]
[1719979536151,0.41007,60965.0,60964.0,0.38517286]
[1719979536630,0.41007,60965.0,60964.0,0.01727286]
[1719979536631,0.574098,60965.0,60964.0,0.01727286]
[1719979537011,0.574098,60965.0,60964.0,0.01627286]
[1719979537823,0.65425382,60965.0,60964.0,0.01627286]
[1719979538002,0.246075,60957.0,60956.0,0.05820885]
[1719979538202,0.246075,60957.0,60956.0,0.07448171]
[1719979538625,0.410125,60957.0,60956.0,0.07448171]
[1719979539028,0.410125,60957.0,60956.0,0.01627286]
[1719979539712,0.410125,60957.0,60956.0,0.01927286]
[1719979539910,0.503425,60957.0,60956.0,0.07748171]
[1719979543328,0.503425,60957.0,60956.0,0.06120885]
[1719979544535,0.339375,60957.0,60956.0,0.43960885]
[1719979545979,0.0933,60957.0,60956.0,0.43960885]
[1719979547973,0.082017,60963.0,60956.0,0.43960885]
[1719979548190,0.082017,60963.0,60962.0,0.05820885]
[1719979548191,0.24605,60963.0,60962.0,0.05820885]
[1719979548383,0.43935,60963.0,60962.0,0.05820885]
[1719979549414,0.44435,60963.0,60962.0,0.05820885]
[1719979550925,0.45035,60963.0,60962.0,0.43360885]
[1719979555872,0.45035,60963.0,60962.0,0.3754]
[1719979556437,0.45035,60963.0,60962.0,0.43360885]
[1719979557335,0.45035,60963.0,60962.0,0.3754]
[1719979559317,0.614383,60963.0,60962.0,0.3754]
[1719979559528,0.614383,60963.0,60962.0,0.43360885]
[1719979560217,0.614383,60963.0,60962.0,0.3754]
[1719979560542,0.614383,60963.0,60961.0,0.05820885]
[1719979560543,0.246054,60962.0,60961.0,0.05820885]
[1719979560731,0.082019,60961.0,60960.0,0.1551]
[1719979560969,0.082019,60961.0,60960.0,0.17137286]
[1719979561173,0.22763789,60961.0,60960.0,0.17137286]
[1719979561303,0.55571589,60961.0,60960.0,0.01627286]
[1719979561509,0.71631589,60961.0,60960.0,0.01627286]
[1719979561723,0.55571589,60961.0,60960.0,0.01627286]
[1719979561902,0.65201589,60961.0,60960.0,0.01627286]
[1719979562459,0.65501589,60961.0,60960.0,0.01627286]
[1719979562701,0.23363789,60961.0,60960.0,0.07448171]
[1719979562867,0.48497689,60961.0,60960.0,0.07448171]
[1719979563126,0.48497689,60961.0,60960.0,0.01627286]
[1719979563298,0.48797689,60961.0,60960.0,0.01627286]
[1719979563497,0.49197689,60961.0,60960.0,0.01627286]
[1719979563998,0.48797689,60961.0,60960.0,0.01627286]
[1719979564379,0.49197689,60961.0,60960.0,0.01627286]
[1719979564778,0.48497689,60961.0,60960.0,0.01627286]
[1719979565202,0.48997689,60961.0,60960.0,0.01627286]
[1719979565540,0.48997689,60961.0,60960.0,0.07448171]
[1719979566075,0.48997689,60961.0,60960.0,0.05820885]
[1719979566497,0.48997689,60961.0,60954.0,0.1613]
[1719979566498,0.410102,60960.0,60959.0,0.05820885]
[1719979566755,0.503402,60960.0,60959.0,0.26180885]
[1719979566977,0.503402,60960.0,60959.0,0.41510885]
[1719979567194,0.005,60961.0,60960.0,0.08820885]
[1719979567418,0.005,60961.0,60960.0,0.43860885]
[1719979567623,0.005,60961.0,60960.0,0.44188919]
[1719979567624,0.002,60961.0,60960.0,0.44188919]
[1719979567823,0.002,60961.0,60960.0,0.43860885]
[1719979567939,0.002,60961.0,60955.0,0.164052]
[1719979567940,0.00084,60963.0,60962.0,0.40860885]
[1719979568146,0.00084,60963.0,60962.0,0.42488171]
[1719979569399,0.00084,60963.0,60962.0,0.45488171]
[1719979569566,0.00184,60963.0,60962.0,0.43088171]
[1719979570265,0.00284,60963.0,60962.0,0.46088171]
[1719979571267,0.00284,60963.0,60962.0,0.54289971]
[1719979573228,0.00284,60963.0,60962.0,0.52662685]
[1719979574231,0.00284,60963.0,60962.0,0.41460885]
[1719979574474,0.09614,60963.0,60962.0,0.41460885]
[1719979574669,0.44676786,60971.0,60970.0,0.05820885]
[1719979574876,0.54006786,60971.0,60970.0,0.07448171]
[1719979575080,0.62207386,60971.0,60970.0,0.07448171]
[1719979575698,0.52877386,60971.0,60970.0,0.07448171]
[1719979575874,0.62207386,60971.0,60970.0,0.07448171]
[1719979576289,0.62507386,60971.0,60970.0,0.07448171]
[1719979576494,0.62907386,60971.0,60970.0,0.07448171]
[1719979576689,0.72907386,60971.0,60970.0,0.07448171]
[1719979577093,0.63577386,60971.0,60970.0,0.07448171]
[1719979577290,0.72907386,60971.0,60970.0,0.07448171]
[1719979578063,0.63577386,60971.0,60970.0,0.07448171]
[1719979578491,0.72607386,60971.0,60970.0,0.07448171]
[1719979578911,0.279306,60971.0,60970.0,0.07448171]
[1719979579120,0.275306,60971.0,60970.0,0.07448171]
[1719979579314,0.276306,60971.0,60970.0,0.07448171]
[1719979579921,0.276306,60971.0,60970.0,0.05820885]
[1719979585097,0.1943,60971.0,60970.0,0.05820885]
[1719979585352,0.001,60971.0,60970.0,0.05820885]
[1719979585572,0.001,60971.0,60970.0,0.08820885]
[1719979585831,0.001,60971.0,60970.0,0.28930885]
[1719979586772,0.001,60971.0,60970.0,0.25930885]
[1719979588587,0.001,60971.0,60970.0,0.28930885]
[1719979589340,0.001,60971.0,60970.0,0.25930885]
[1719979589542,0.001,60971.0,60970.0,0.44450885]
[1719979591236,0.001,60971.0,60970.0,0.3563]
[1719979591454,0.001,60971.0,60970.0,1.47885965]
[1719979591689,0.001,60971.0,60970.0,2.11577465]
[1719979591911,0.001,60971.0,60970.0,2.57312108]
[1719979592121,0.001,60971.0,60970.0,2.67149255]
[1719979592321,0.001,60971.0,60970.0,2.64675534]
[1719979592521,0.00084,60974.0,60973.0,1.13513285]
[1719979592743,0.00084,60974.0,60973.0,1.74643165]
[1719979593621,0.00084,60974.0,60973.0,2.11043865]
[1719979593819,0.00184,60974.0,60973.0,2.11143865]
[1719979594154,0.00084,60979.0,60978.0,0.36]
[1719979594352,0.00084,60979.0,60978.0,1.73294666]
[1719979594554,0.00084,60979.0,60978.0,1.76115551]
[1719979595041,0.00084,60979.0,60978.0,1.96115551]
[1719979595237,0.00084,60979.0,60978.0,2.18120388]
[1719979595238,0.00184,60979.0,60978.0,2.18120388]
[1719979595461,0.00184,60979.0,60978.0,2.23214851]
[1719979596073,0.00084,60979.0,60978.0,2.52514851]
[1719979596271,0.00084,60979.0,60978.0,2.54814851]
[1719979596483,0.00284,60979.0,60978.0,2.55614851]
[1719979597100,0.00284,60979.0,60978.0,2.55514851]
[1719979597101,0.00184,60979.0,60978.0,2.55514851]
[1719979597357,0.00284,60979.0,60978.0,2.55614851]
[1719979598199,0.00284,60979.0,60978.0,2.62978749]
[1719979598402,0.00284,60979.0,60978.0,2.82680948]
[1719979598606,0.00084,60993.0,60992.0,1.33565085]
[1719979598809,0.00084,60993.0,60992.0,1.60552251]
[1719979599290,0.00084,60993.0,60992.0,2.14237751]
[1719979599447,0.00084,60993.0,60992.0,2.56537751]
[1719979599622,0.00084,60993.0,60992.0,2.59826751]
[1719979599831,0.00084,60993.0,60992.0,2.60126751]
[1719979600311,0.00084,60993.0,60992.0,2.61425497]
[1719979600516,0.00084,60993.0,60992.0,2.11131251]
[1719979600715,0.00084,60993.0,60992.0,0.73435751]
[1719979601015,0.00084,60993.0,60992.0,0.68701251]
[1719979601144,0.00084,60993.0,60992.0,0.85096751]
[1719979601346,0.00084,60993.0,60992.0,0.85396751]
[1719979601598,0.00084,60993.0,60992.0,0.68701251]
[1719979601751,0.58157882,61005.0,61003.0,0.05820885]
[1719979601952,0.0933,61004.0,61003.0,0.07448171]
[1719979602273,0.0933,61004.0,61003.0,0.01627286]
[1719979602274,0.58326282,61004.0,61003.0,0.01627286]
[1719979602456,0.74046282,61004.0,61003.0,0.01627286]
[1719979603042,0.74046282,61004.0,61003.0,0.01727286]
[1719979603043,0.660307,61004.0,61003.0,0.01727286]
[1719979603644,0.660307,61004.0,61003.0,0.01627286]
[1719979604009,0.567007,61004.0,61003.0,0.01627286]
[1719979606447,0.567007,61004.0,61003.0,0.07448171]
[1719979606653,0.17849582,61005.0,61004.0,0.05820885]
[1719979606839,0.291456,61008.0,61007.0,0.05820885]
[1719979607033,0.455368,61008.0,61007.0,0.05820885]
[1719979607657,0.291456,61008.0,61007.0,0.05820885]
[1719979607909,0.081956,61008.0,61007.0,0.05820885]
[1719979608180,0.002,61009.0,61007.0,0.05820885]
[1719979608181,0.002,61009.0,61008.0,0.05820885]
[1719979609480,0.002,61009.0,61008.0,0.05920885]
[1719979609882,0.002,61009.0,61008.0,0.05820885]
[1719979610338,0.002,61009.0,61003.0,0.01627286]
[1719979610339,0.238056,61008.0,61007.0,0.05820885]
[1719979610493,0.401968,61008.0,61007.0,0.05820885]
[1719979613430,0.002,61009.0,61008.0,0.05820885]
[1719979613861,0.083955,61009.0,61008.0,0.05820885]
[1719979615060,0.002,61009.0,61008.0,0.05820885]
[1719979615261,0.002,61009.0,61005.0,0.1592]
[1719979615463,0.002,61009.0,61008.0,0.05820885]
[1719979616062,0.002,61009.0,61008.0,0.05920885]
[1719979616512,0.002,61009.0,61008.0,0.06020885]
[1719979620200,0.002,61009.0,61008.0,0.07648171]
[1719979620411,0.002,61009.0,61008.0,0.10648171]
[1719979620589,0.002,61009.0,61008.0,0.07648171]
[1719979620817,0.002,61009.0,61008.0,0.17216485]
[1719979621028,0.002,61009.0,61008.0,0.14216485]
[1719979622432,0.002,61009.0,61008.0,0.17216485]
[1719979622642,0.002,61009.0,61008.0,0.70187685]
[1719979623674,0.002,61009.0,61008.0,0.86217565]
[1719979623848,0.002,61009.0,61008.0,0.22460885]
[1719979624493,0.002,61009.0,61008.0,0.06020885]
[1719979629984,0.002,61009.0,61008.0,0.09020885]
[1719979631291,0.002,61009.0,61008.0,0.13910448]
[1719979631492,0.002,61009.0,61008.0,0.09020885]
[1719979632471,0.002,61009.0,61008.0,0.37726048]
[1719979633090,0.002,61009.0,61008.0,0.59106048]
[1719979633294,0.002,61009.0,61008.0,0.47910448]
[1719979633447,0.002,61009.0,61008.0,0.47914925]
[1719979633986,0.002,61009.0,61008.0,0.50914664]
[1719979634338,0.002,61009.0,61008.0,0.89751799]
[1719979634538,0.002,61009.0,61008.0,0.43020885]
[1719979635159,0.002,61009.0,61008.0,0.10916904]
[1719979635366,0.002,61009.0,61008.0,0.002]
[1719979635367,0.247865,61009.0,61008.0,0.002]
[1719979635699,0.778975,61009.0,61008.0,0.002]
[1719979637844,1.011775,61009.0,61008.0,0.002]
[1719979641255,1.011775,61009.0,61008.0,0.06020885]
[1719979643342,0.620775,61009.0,61008.0,0.06020885]
[1719979643551,0.002,61009.0,61008.0,0.06020885]
[1719979643737,0.083955,61009.0,61008.0,0.06020885]
[1719979645906,0.002,61009.0,61008.0,0.06020885]
[1719979646102,0.002,61009.0,61008.0,0.06348675]
[1719979646377,0.002,61009.0,61008.0,0.24890885]
[1719979646572,0.002,61009.0,61008.0,0.45318662]
[1719979647148,0.002,61009.0,61008.0,0.53514262]
[1719979647741,0.002,61009.0,61008.0,1.02326542]
[1719979648836,0.002,61009.0,61008.0,1.02226542]
[1719979649047,0.002,61009.0,61008.0,1.03126542]
[1719979650196,0.002,61009.0,61008.0,1.03026542]
[1719979650395,0.002,61009.0,61008.0,1.04126542]
[1719979651315,0.002,61009.0,61008.0,1.03226542]
[1719979651464,0.002,61009.0,61008.0,1.04526542]
[1719979651664,0.002,61009.0,61008.0,1.03426542]
[1719979651880,0.002,61009.0,61008.0,0.88435342]
[1719979652076,0.002,61009.0,61008.0,0.87135342]
[1719979652237,0.002,61009.0,61008.0,0.88107565]
[1719979653544,0.002,61009.0,61008.0,0.86707565]
[1719979653856,0.002,61009.0,61008.0,0.85407565]
[1719979654076,0.002,61009.0,61008.0,0.88107565]
[1719979654478,0.002,61009.0,61008.0,0.86707565]
[1719979654682,0.002,61009.0,61008.0,0.86807565]
[1719979654892,0.002,61009.0,61008.0,0.88107565]
[1719979658751,0.002,61009.0,61008.0,1.04492331]
[1719979659593,0.002,61009.0,61008.0,0.193912]
[1719979659795,0.002,61009.0,61008.0,0.4430576]
[1719979660239,0.002,61009.0,61008.0,0.6033564]
[1719979660954,0.002,61009.0,61008.0,1.4971028]
[1719979661180,0.002,61009.0,61008.0,1.56919491]
[1719979661354,0.002,61009.0,61008.0,1.88393069]
[1719979661997,0.002,61009.0,61008.0,0.8601908]
[1719979662183,0.002,61009.0,61008.0,1.20927465]
[1719979662507,0.002,61009.0,61008.0,1.1601908]
[1719979662718,0.002,61009.0,61008.0,1.5135908]
[1719979662927,0.002,61009.0,61008.0,1.46648002]
[1719979663133,0.002,61009.0,61008.0,1.92259202]
[1719979663309,0.002,61009.0,61008.0,2.23734076]
[1719979663891,0.003,61009.0,61008.0,2.38544076]
[1719979664236,0.004,61009.0,61008.0,2.39344076]
[1719979664439,0.003,61009.0,61008.0,2.38944076]
[1719979664784,0.004,61009.0,61008.0,2.39344076]
[1719979665615,0.004,61009.0,61008.0,2.39342194]
[1719979666021,0.004,61009.0,61008.0,2.0296028]
[1719979669014,0.00084,61012.0,61011.0,1.240568]
[1719979669244,0.00084,61012.0,61011.0,2.26455748]
[1719979669448,0.00084,61012.0,61011.0,2.36262133]
[1719979669576,0.00084,61012.0,61011.0,2.26455748]
[1719979669787,0.00084,61012.0,61011.0,2.36262133]
[1719979669988,0.00084,61012.0,61011.0,2.26455748]
[1719979670376,0.00284,61012.0,61011.0,2.3660881]
[1719979671207,0.00284,61012.0,61011.0,1.92873966]
[1719979671810,0.00284,61012.0,61011.0,2.36605685]
[1719979671981,0.00284,61012.0,61011.0,2.00227028]
[1719979672179,0.00284,61012.0,61011.0,1.92873966]
[1719979673107,0.00284,61012.0,61011.0,1.97773958]
[1719979673543,0.00284,61012.0,61011.0,1.92873966]
[1719979674372,0.00284,61012.0,61011.0,1.9124668]
[1719979678943,0.00284,61012.0,61011.0,1.0886588]
[1719979679505,0.00284,61012.0,61011.0,1.2525628]
[1719979680082,0.00284,61012.0,61011.0,1.0886588]
[1719979680296,0.00284,61012.0,61011.0,0.2702508]
[1719979680549,0.00284,61012.0,61011.0,0.1882988]
[1719979680971,0.00284,61012.0,61011.0,0.028]
[1719979681189,0.00284,61012.0,61011.0,0.058]
[1719979681355,0.00284,61012.0,61011.0,0.139952]
[1719979681549,0.00184,61012.0,61011.0,0.11522974]
[1719979681824,0.00084,61012.0,61011.0,0.04227774]
[1719979681970,0.00184,61012.0,61011.0,0.04227774]
[1719979682170,0.00184,61012.0,61011.0,0.45743254]
[1719979682588,0.00184,61012.0,61011.0,0.62133654]
[1719979683453,0.00084,61012.0,61011.0,0.60333654]
[1719979683829,0.00184,61012.0,61011.0,0.62133654]
[1719979684015,0.00184,61012.0,61011.0,0.61233654]
[1719979684236,0.00084,61012.0,61011.0,0.60333654]
[1719979684442,0.00084,61012.0,61011.0,0.61633654]
[1719979684825,0.00184,61012.0,61011.0,0.62933654]
[1719979684949,0.00184,61012.0,61011.0,0.64133654]
[1719979685151,0.00084,61012.0,61011.0,0.62833654]
[1719979685359,0.00084,61012.0,61011.0,0.60333654]
[1719979686454,0.00184,61012.0,61011.0,0.61733654]
[1719979686657,0.00184,61012.0,61011.0,0.2862508]
[1719979686877,0.39244,61012.0,61011.0,0.2702508]
[1719979688820,0.39244,61012.0,61011.0,0.1882988]
[1719979690139,0.39244,61012.0,61011.0,0.2702508]
[1719979691198,0.39244,61012.0,61011.0,0.3002508]
[1719979692879,0.11373594,61012.0,61011.0,0.3002508]
[1719979695844,0.29713594,61012.0,61011.0,0.3002508]
[1719979698980,0.00837,61013.0,61012.0,0.03]
[1719979700035,0.00837,61013.0,61012.0,0.044]
[1719979700230,0.00937,61013.0,61012.0,0.044]
[1719979700443,0.00937,61013.0,61012.0,0.028]
[1719979700663,0.00937,61013.0,61012.0,0.04427286]
[1719979700664,0.81137,61013.0,61012.0,0.04427286]
[1719979701924,1.087218,61013.0,61012.0,0.04427286]
[1719979702123,0.923319,61013.0,61012.0,0.04427286]
[1719979702340,0.61128041,61013.0,61012.0,0.04427286]
[1719979702532,0.70748041,61013.0,61012.0,0.04427286]
[1719979702935,1.39917741,61013.0,61012.0,0.04427286]
[1719979703489,1.42917741,61013.0,61012.0,0.04427286]
[1719979703694,1.42917741,61013.0,61012.0,0.01627286]
[1719979703922,1.78337521,61013.0,61012.0,0.01627286]
[1719979704119,1.78337521,61013.0,61012.0,0.02127286]
[1719979704120,1.88337521,61013.0,61012.0,0.02127286]
[1719979704332,1.88337521,61013.0,61012.0,0.005]
[1719979704733,1.85537521,61013.0,61012.0,0.005]
[1719979705606,1.85537521,61013.0,61012.0,0.003]
[1719979705947,1.85937521,61013.0,61012.0,0.003]
[1719979707348,1.88937521,61013.0,61012.0,0.003]
[1719979707549,1.92043574,61013.0,61012.0,0.003]
[1719979707964,1.88937521,61013.0,61012.0,0.003]
[1719979711095,1.85937521,61013.0,61012.0,0.003]
[1719979711282,1.76317521,61013.0,61012.0,0.003]
[1719979711480,1.85937521,61013.0,61012.0,0.003]
[1719979712930,1.88460739,61013.0,61012.0,0.003]
[1719979714115,1.85460739,61013.0,61012.0,0.003]
[1719979714312,1.40897741,61013.0,61012.0,0.003]
[1719979714520,1.50517741,61013.0,61012.0,0.003]
[1719979714948,1.34127841,61013.0,61012.0,0.003]
[1719979715154,1.16517841,61013.0,61012.0,0.003]
[1719979715911,1.16117841,61013.0,61012.0,0.003]
[1719979716466,1.16517841,61013.0,61012.0,0.003]
[1719979717238,1.16517841,61013.0,61009.0,0.000924]
[1719979717239,0.56939141,61010.0,61009.0,0.000924]
[1719979717443,0.76559141,61010.0,61009.0,0.01719686]
[1719979717645,0.66559141,61010.0,61009.0,0.01719686]
[1719979718710,0.66559141,61010.0,61009.0,0.01819686]
[1719979720107,0.66559141,61010.0,61009.0,0.42089686]
[1719979720108,0.2,61010.0,61009.0,0.42089686]
[1719979720423,0.2,61014.0,61013.0,0.081948]
[1719979720598,0.2,61014.0,61013.0,0.03]
[1719979720980,0.09353141,61011.0,61009.0,0.01919686]
[1719979721177,0.3262,61014.0,61009.0,0.01719686]
[1719979721178,0.18973141,61010.0,61009.0,0.01719686]
[1719979721470,0.43559141,61010.0,61009.0,0.01719686]
[1719979721629,0.46559141,61010.0,61009.0,0.01719686]
[1719979721845,0.46559141,61010.0,61009.0,0.01819686]
[1719979722375,0.46559141,61010.0,61009.0,0.01719686]
[1719979722598,0.09453141,61010.0,61009.0,0.02619686]
[1719979723201,0.09453141,61010.0,61009.0,0.17749566]
[1719979723202,0.09353141,61010.0,61009.0,0.17749566]
[1719979723465,0.09353141,61010.0,61009.0,0.18649566]
[1719979723671,0.09353141,61010.0,61009.0,0.01719686]
[1719979723672,0.20548441,61010.0,61009.0,0.01719686]
[1719979723784,0.12353141,61010.0,61009.0,0.02319686]
[1719979724312,0.21973141,61010.0,61009.0,0.01719686]
[1719979724484,0.21973141,61010.0,61009.0,0.02319686]
[1719979724678,0.21973141,61010.0,61009.0,0.02119686]
[1719979724884,0.09353141,61010.0,61009.0,0.02119686]
[1719979725084,0.09353141,61010.0,61009.0,0.03119686]
[1719979726161,0.00084,61013.0,61009.0,0.03119686]
[1719979726362,0.082789,61013.0,61009.0,0.03119686]
[1719979726518,0.082789,61013.0,61009.0,0.02119686]
[1719979726704,0.082789,61013.0,61009.0,0.02619686]
[1719979727104,0.082789,61013.0,61009.0,0.02119686]
[1719979727429,0.082789,61013.0,61011.0,0.03]
[1719979727430,0.00084,61013.0,61011.0,0.03]
[1719979727568,0.00084,61013.0,61010.0,0.3767]
[1719979728649,0.00084,61013.0,61012.0,0.439755]
[1719979728864,0.00084,61013.0,61012.0,0.9767538]
[1719979729862,0.00184,61013.0,61012.0,0.9767538]
[1719979730187,0.00084,61013.0,61012.0,0.9767538]
[1719979730400,0.00084,61013.0,61012.0,0.9867538]
[1719979730590,0.00084,61013.0,61012.0,1.0729538]
[1719979730912,0.00084,61013.0,61012.0,1.0869538]
[1719979731312,0.00084,61013.0,61012.0,1.0729538]
[1719979731716,0.00084,61013.0,61012.0,1.0869538]
[1719979731899,0.00084,61013.0,61012.0,1.2508558]
[1719979732243,0.00084,61013.0,61012.0,1.7328558]
[1719979732399,0.00184,61013.0,61012.0,1.7558558]
[1719979732941,0.00184,61013.0,61012.0,1.7468558]
[1719979732942,0.00084,61013.0,61012.0,1.7468558]
[1719979733166,0.00184,61013.0,61012.0,1.7608558]
[1719979733445,0.00184,61013.0,61012.0,1.7468558]
[1719979733741,0.00084,61013.0,61012.0,1.7468558]
[1719979733940,0.00084,61013.0,61012.0,1.7608558]
[1719979733941,0.00184,61013.0,61012.0,1.7608558]
[1719979734647,0.00184,61013.0,61012.0,1.4608558]
[1719979735019,0.00184,61013.0,61012.0,1.2878558]
[1719979735536,0.00184,61013.0,61012.0,1.5878558]
[1719979740426,0.00184,61013.0,61012.0,1.2878558]
[1719979740625,0.00184,61013.0,61012.0,1.5878558]
[1719979745100,0.00184,61013.0,61012.0,1.5648558]
[1719979745358,0.00184,61013.0,61012.0,2.10822639]
[1719979745578,0.00184,61013.0,61012.0,2.23122639]
[1719979745791,0.00184,61013.0,61012.0,2.13502639]
[1719979745924,0.00184,61013.0,61012.0,2.23122639]
[1719979750408,0.00184,61013.0,61012.0,2.49384839]
[1719979751410,0.00184,61013.0,61012.0,2.54281238]
[1719979751997,0.00837,61016.0,61015.0,1.44699159]
[1719979752177,0.00837,61022.0,61021.0,0.95528559]
[1719979752377,0.00837,61022.0,61021.0,2.04064039]
[1719979752681,0.00837,61022.0,61021.0,2.60103986]
[1719979752843,0.00837,61022.0,61021.0,2.89128127]
[1719979753046,0.00837,61022.0,61021.0,2.89128028]
[1719979753465,0.00837,61022.0,61021.0,2.24151839]
[1719979753606,0.00837,61022.0,61021.0,2.66459435]
[1719979753812,0.00837,61022.0,61021.0,2.30089664]
[1719979754139,0.00837,61022.0,61021.0,2.31489664]
[1719979754317,0.00837,61022.0,61021.0,2.67859817]
[1719979754521,0.00837,61022.0,61021.0,2.60521992]
[1719979754716,0.00837,61022.0,61021.0,2.75542231]
[1719979754903,0.00837,61022.0,61021.0,2.59639361]
[1719979755107,0.00837,61022.0,61021.0,0.7279938]
[1719979755532,0.00837,61022.0,61021.0,0.4641158]